bitfinex-derivatives/quotes_SOLF0:USTF0_20250709
["timestamp","ask_amount","ask_price","bid_price","bid_amount"]
[1752073247646,6.5005,153.82,153.78,4.72928831]
[1752073247846,6.5005,153.82,153.79,0.04143452]
[1752073248045,18.5229168,153.82,153.79,0.04143452]
[1752073248251,12.0224168,153.82,153.79,0.04143452]
[1752073248443,2.2282,153.84,153.79,0.04143452]
[1752073248741,12.0224168,153.84,153.8,4.72928831]
[1752073248950,18.5220168,153.84,153.81,6.5005]
[1752073249147,12.0224168,153.84,153.81,6.5005]
[1752073250246,6.4999,153.83,153.8,11.23018831]
[1752073250646,18.5223168,153.83,153.8,11.23018831]
[1752073250848,12.0224168,153.83,153.8,4.72928831]
[1752073251047,12.0224168,153.83,153.81,6.5004]
[1752073251348,12.0224168,153.83,153.8,4.72928831]
[1752073251546,6.4995,153.84,153.81,6.5004]
[1752073251746,18.5219168,153.84,153.81,6.5004]
[1752073252142,6.4999,153.83,153.81,6.5004]
[1752073252446,6.4999,153.83,153.8,11.23018831]
[1752073252647,12.0224168,153.84,153.8,11.23018831]
[1752073252648,6.4996,153.84,153.8,4.72928831]
[1752073252848,18.5220168,153.84,153.81,6.5006]
[1752073254048,12.0224168,153.84,153.8,4.72928831]
[1752073254244,6.4992,153.85,153.8,4.72928831]
[1752073254445,6.4996,153.84,153.8,4.72928831]
[1752073254640,12.0224168,153.85,153.8,4.72928831]
[1752073254845,12.0224168,153.85,153.83,6.4995]
[1752073255242,12.0224168,153.85,153.82,4.72928831]
[1752073255447,12.0224168,153.85,153.83,6.4996]
[1752073255649,12.0224168,153.85,153.82,4.72928831]
[1752073256456,6.4987,153.86,153.79,1.04143452]
[1752073256651,14.3500168,153.89,153.84,4.72928831]
[1752073257052,6.4979,153.88,153.85,6.499]
[1752073257252,6.4979,153.88,153.85,0.04622665]
[1752073257456,12.0224168,153.88,153.85,0.04622665]
[1752073258358,6.4986,153.86,153.85,0.04622665]
[1752073259458,4.72928831,153.84,153.76,379.04928831]
[1752073259657,14.2038168,153.85,153.8,4.72928831]
[1752073259956,6.4988,153.86,153.83,4.72928831]
[1752073260355,12.0224168,153.86,153.83,4.72928831]
[1752073260654,6.4993,153.85,153.83,4.72928831]
[1752073260962,7.05688831,153.89,153.83,4.72928831]
[1752073260963,6.4985,153.87,153.84,6.4991]
[1752073261156,6.4985,153.87,153.83,4.72928831]
[1752073261457,18.5209168,153.87,153.83,4.72928831]
[1752073261658,18.5209168,153.87,153.84,6.4993]
[1752073261959,18.5209168,153.87,153.83,4.72928831]
[1752073262155,2.3276,153.89,153.85,4.72928831]
[1752073262459,14.3500168,153.89,153.85,4.72928831]
[1752073262659,14.3500168,153.89,153.83,4.72928831]
[1752073262851,19.07930511,153.89,153.81,4.72928831]
[1752073263054,8.23420617,153.88,153.82,6.5002]
[1752073263356,14.3500168,153.89,153.83,4.72928831]
[1752073264754,6.4979,153.88,153.83,4.72928831]
[1752073264955,12.0224168,153.89,153.85,4.72928831]
[1752073265865,18.5199168,153.89,153.86,6.4983]
[1752073266059,12.0224168,153.89,153.85,4.72928831]
[1752073266553,18.5200168,153.89,153.86,6.4985]
[1752073267359,12.0224168,153.89,153.88,6.4977]
[1752073267663,2.2964,153.93,153.87,4.72928831]
[1752073267865,16.5637168,153.93,153.88,6.4976]
[1752073268063,16.5637168,153.93,153.87,4.72928831]
[1752073268462,6.4971,153.9,153.87,11.22718831]
[1752073268656,16.5637168,153.93,153.87,11.22718831]
[1752073268863,8.2784833,153.92,153.87,4.72928831]
[1752073269161,8.2784833,153.92,153.8,4.3372]
[1752073269162,6.4975,153.89,153.86,6.4983]
[1752073269462,6.4981,153.88,153.85,11.22808831]
[1752073269665,4.72928831,153.92,153.85,4.72928831]
[1752073269861,16.75170511,153.92,153.85,4.72928831]
[1752073270066,16.75170511,153.92,153.85,11.22818831]
[1752073270359,8.2759229,153.91,153.85,4.72928831]
[1752073270562,4.72928831,153.9,153.83,11.22888831]
[1752073271065,6.4994,153.85,153.83,4.72928831]
[1752073271266,16.75170511,153.9,153.82,6.5002]
[1752073271463,8.27455408,153.89,153.76,384.49388831]
[1752073271666,6.5001,153.83,153.8,4.72928831]
[1752073272165,6.5001,153.83,153.8,11.23018831]
[1752073272757,6.5001,153.83,153.81,6.5005]
[1752073273169,4.594,153.87,153.8,4.72928831]
[1752073273170,6.4996,153.84,153.8,4.72928831]
[1752073273462,16.6164168,153.87,153.82,11.22948831]
[1752073273669,12.0224168,153.87,153.82,4.72928831]
[1752073273965,16.75170511,153.87,153.81,6.5007]
[1752073274558,12.0224168,153.87,153.82,6.5002]
[1752073274962,12.0224168,153.87,153.8,4.72928831]
[1752073274963,16.75170511,153.87,153.8,4.72928831]
[1752073275167,16.75170511,153.87,153.81,6.5005]
[1752073275567,6.4998,153.84,153.8,4.72928831]
[1752073275771,12.0224168,153.87,153.82,6.5]
[1752073276067,16.75170511,153.87,153.79,4.72928831]
[1752073276367,16.75170511,153.87,153.81,6.5005]
[1752073276566,6.4998,153.84,153.81,6.5005]
[1752073276761,16.75170511,153.87,153.81,6.5005]
[1752073277864,6.4998,153.84,153.81,6.5005]
[1752073278268,18.5222168,153.84,153.81,6.5005]
[1752073278466,18.5222168,153.84,153.79,4.72928831]
[1752073278860,6.4999,153.83,153.79,4.72928831]
[1752073279167,12.0224168,153.84,153.76,379.7646]
[1752073279365,12.0224168,153.84,153.77,4.72928831]
[1752073279366,6.501,153.81,153.77,4.72928831]
[1752073279566,12.0224168,153.84,153.77,4.72928831]
[1752073279769,16.3450168,153.84,153.77,4.72928831]
[1752073279963,16.3450168,153.84,153.78,6.5017]
[1752073280168,8.26956523,153.83,153.77,4.72928831]
[1752073280368,16.3450168,153.84,153.77,4.72928831]
[1752073280568,6.5005,153.82,153.79,6.5012]
[1752073280871,4.72928831,153.83,153.76,374.32]
[1752073281069,4.72928831,153.83,153.76,379.04928831]
[1752073281271,6.5014,153.8,153.76,379.04928831]
[1752073281765,18.5238168,153.8,153.76,379.04928831]
[1752073282165,18.5238168,153.8,153.77,6.502]
[1752073282565,12.0224168,153.8,153.75,4.72928831]
[1752073282771,12.0224168,153.8,153.75,11.23218831]
[1752073282970,6.5018,153.79,153.75,4.72928831]
[1752073283470,18.5242168,153.79,153.75,4.72928831]
[1752073283769,18.5242168,153.79,153.76,6.5026]
[1752073283971,18.5242168,153.79,153.75,4.72928831]
[1752073284373,6.5018,153.79,153.76,6.5026]
[1752073284674,12.0224168,153.79,153.74,4.72928831]
[1752073285172,12.0224168,153.79,153.75,6.5029]
[1752073286171,6.5023,153.78,153.75,6.5029]
[1752073286371,12.0224168,153.78,153.74,6.5035]
[1752073286573,12.0224168,153.78,153.72,4.72928831]
[1752073286772,18.5246168,153.78,153.72,4.72928831]
[1752073287071,12.0224168,153.78,153.72,4.72928831]
[1752073287375,6.5027,153.77,153.72,4.72928831]
[1752073287673,12.0224168,153.78,153.74,6.5036]
[1752073288273,6.5027,153.77,153.74,6.5036]
[1752073288469,6.5027,153.77,153.71,4.72928831]
[1752073288470,4.72928831,153.77,153.71,4.72928831]
[1752073288773,21.18730511,153.77,153.71,4.72928831]
[1752073288973,6.5037,153.74,153.71,11.23388831]
[1752073289169,21.18730511,153.77,153.71,4.72928831]
[1752073289972,16.4580168,153.77,153.71,4.72928831]
[1752073290269,16.4580168,153.77,153.73,4.72928831]
[1752073290469,16.4580168,153.77,153.75,6.503]
[1752073290671,12.0224168,153.77,153.75,6.503]
[1752073291172,12.0224168,153.77,153.74,6.5035]
[1752073291670,12.0224168,153.77,153.73,4.72928831]
[1752073291871,12.0224168,153.77,153.74,6.5036]
[1752073292071,6.5029,153.76,153.74,6.5036]
[1752073292272,12.0224168,153.77,153.73,4.72928831]
[1752073292472,12.0224168,153.77,153.75,6.5029]
[1752073293376,12.0224168,153.77,153.74,6.5035]
[1752073294075,12.0224168,153.77,153.73,6.5039]
[1752073294370,12.0224168,153.77,153.71,4.72928831]
[1752073294676,18.5249168,153.77,153.74,6.5033]
[1752073294878,12.0224168,153.77,153.73,4.72928831]
[1752073295072,4.479,153.82,153.69,572.92]
[1752073295073,6.5021,153.78,153.69,572.92]
[1752073295377,21.23070511,153.82,153.75,4.72928831]
[1752073295567,8.17907992,153.81,153.75,4.72928831]
[1752073295768,6.5016,153.79,153.75,4.72928831]
[1752073296171,18.5240168,153.79,153.75,4.72928831]
[1752073296479,18.5240168,153.79,153.76,6.5025]
[1752073296672,6.502,153.78,153.76,6.5025]
[1752073297069,18.5244168,153.78,153.76,6.5025]
[1752073297375,9.03361126,153.86,153.77,4.72928831]
[1752073297575,2.2964,153.86,153.79,4.72928831]
[1752073297775,14.3188168,153.86,153.79,4.72928831]
[1752073298177,6.5001,153.83,153.8,6.5009]
[1752073298378,6.5001,153.83,153.79,4.72928831]
[1752073298574,2.3121,153.87,153.82,4.72928831]
[1752073298878,2.3124,153.91,153.84,4.72928831]
[1752073299379,6.4974,153.89,153.84,4.72928831]
[1752073299578,14.3348168,153.91,153.84,4.72928831]
[1752073300482,6.4978,153.88,153.85,6.4986]
[1752073300980,18.5202168,153.88,153.85,6.4986]
[1752073301180,18.5202168,153.88,153.84,4.72928831]
[1752073301181,12.0224168,153.88,153.84,4.72928831]
[1752073302082,2.3124,153.91,153.86,4.72928831]
[1752073302281,14.3348168,153.91,153.86,4.72928831]
[1752073302485,4.72928831,153.9,153.82,4.72928831]
[1752073302682,8.25890546,153.89,153.82,4.72928831]
[1752073302984,12.0224168,153.9,153.84,4.72928831]
[1752073303479,6.4975,153.89,153.86,6.4985]
[1752073303680,12.0224168,153.9,153.86,6.4985]
[1752073303980,12.0224168,153.9,153.85,4.72928831]
[1752073303981,6.4977,153.89,153.87,6.4981]
[1752073304181,6.4977,153.89,153.85,4.72928831]
[1752073304378,18.5201168,153.89,153.86,6.4984]
[1752073304583,12.0224168,153.89,153.85,4.72928831]
[1752073305083,18.5198168,153.89,153.86,6.4984]
[1752073305284,18.5198168,153.89,153.85,4.72928831]
[1752073305685,18.5198168,153.89,153.85,11.22808831]
[1752073305885,6.4978,153.88,153.85,4.72928831]
[1752073306184,16.75170511,153.89,153.83,4.72928831]
[1752073306581,6.4984,153.87,153.83,4.72928831]
[1752073306982,12.0224168,153.87,153.83,4.72928831]
[1752073307182,6.498,153.88,153.83,4.72928831]
[1752073307482,6.498,153.88,153.85,4.72928831]
[1752073307682,2.3124,153.91,153.85,4.72928831]
[1752073307983,14.3348168,153.91,153.85,4.72928831]
[1752073308180,6.4973,153.89,153.85,4.72928831]
[1752073308383,6.4973,153.89,153.86,6.4983]
[1752073308684,12.0224168,153.89,153.84,4.72928831]
[1752073310186,6.4984,153.87,153.84,11.22868831]
[1752073310986,6.4988,153.86,153.84,4.72928831]
[1752073311183,12.0224168,153.87,153.84,4.72928831]
[1752073311685,6.4986,153.86,153.84,4.72928831]
[1752073313284,6.4983,153.87,153.84,11.22868831]
[1752073313486,6.4983,153.87,153.84,4.72928831]
[1752073313986,6.4979,153.88,153.85,6.499]
[1752073314486,18.5203168,153.88,153.85,6.499]
[1752073314886,6.4983,153.87,153.85,6.499]
[1752073315086,6.4983,153.87,153.84,11.22848831]
[1752073315287,7.04168831,153.91,153.84,11.22848831]
[1752073315479,6.4985,153.87,153.84,11.22848831]
[1752073316088,6.4985,153.87,153.85,6.499]
[1752073316489,6.4985,153.87,153.84,11.22838831]
[1752073316690,6.4979,153.88,153.84,4.72928831]
[1752073317096,18.5203168,153.88,153.85,6.4988]
[1752073317482,6.4983,153.87,153.85,6.4988]
[1752073317790,12.0224168,153.88,153.85,6.4988]
[1752073317993,6.4979,153.88,153.86,6.4985]
[1752073318589,6.4975,153.89,153.86,6.4985]
[1752073318789,19.06410511,153.91,153.86,6.4985]
[1752073318992,6.4972,153.9,153.87,6.4981]
[1752073319187,14.3348168,153.91,153.87,6.4981]
[1752073319593,12.0224168,153.91,153.88,4.72928831]
[1752073320092,12.0224168,153.91,153.89,6.4971]
[1752073320293,12.0224168,153.91,153.88,4.72928831]
[1752073320490,12.0224168,153.91,153.87,4.72928831]
[1752073320684,4.72928831,153.9,153.84,5.72928831]
[1752073321195,6.4984,153.87,153.84,4.72928831]
[1752073321385,16.75170511,153.9,153.84,4.72928831]
[1752073321787,16.75170511,153.9,153.84,11.22858831]
[1752073322386,6.4984,153.87,153.84,11.22858831]
[1752073322587,12.0224168,153.9,153.84,4.72928831]
[1752073322785,2.2308,153.93,153.88,4.72928831]
[1752073322996,14.2532168,153.93,153.88,4.72928831]
[1752073323293,14.2532168,153.93,153.89,6.4971]
[1752073323294,6.4963,153.92,153.89,6.4971]
[1752073323490,18.5187168,153.92,153.89,6.4971]
[1752073323692,12.0224168,153.92,153.88,4.72928831]
[1752073324094,12.0224168,153.92,153.9,6.4965]
[1752073324700,2.3343,153.97,153.9,4.72928831]
[1752073324897,14.3567168,153.97,153.9,4.72928831]
[1752073325198,6.495,153.95,153.92,6.4958]
[1752073325797,18.5174168,153.95,153.92,6.4958]
[1752073325996,18.5174168,153.95,153.93,6.4956]
[1752073326691,18.5174168,153.95,153.92,6.4959]
[1752073326894,6.4953,153.94,153.9,4.72928831]
[1752073327196,6.4953,153.94,153.91,6.4962]
[1752073327398,18.5177168,153.94,153.9,4.72928831]
[1752073327597,12.0224168,153.94,153.9,4.72928831]
[1752073327798,12.0224168,153.94,153.92,6.4958]
[1752073328402,12.0224168,153.94,153.93,6.4956]
[1752073329295,6.4946,153.96,153.9,4.72928831]
[1752073329503,18.5170168,153.96,153.94,6.4952]
[1752073329800,18.5170168,153.96,153.92,4.72928831]
[1752073329995,18.5170168,153.96,153.93,6.4956]
[1752073330393,18.5170168,153.96,153.92,4.72928831]
[1752073330597,18.5170168,153.96,153.93,6.4956]
[1752073330995,2.2884,153.98,153.94,4.72928831]
[1752073331198,14.3108168,153.98,153.94,4.72928831]
[1752073331400,12.0224168,153.98,153.94,4.72928831]
[1752073331600,12.0224168,153.98,153.92,4.72928831]
[1752073332201,6.4946,153.96,153.93,6.4954]
[1752073332604,18.5170168,153.96,153.93,6.4954]
[1752073333804,12.0224168,153.96,153.94,6.4952]
[1752073334406,18.5168168,153.96,153.93,6.4954]
[1752073334606,4.4824,154.02,153.94,4.72928831]
[1752073334904,6.4942,153.97,153.94,6.495]
[1752073335098,16.5048168,154.02,153.93,4.72928831]
[1752073335298,4.72928831,153.99,153.95,6.4947]
[1752073335501,6.4937,153.98,153.95,6.4947]
[1752073335898,12.0224168,153.98,153.93,4.72928831]
[1752073336100,12.0224168,153.98,153.94,6.4951]
[1752073336298,12.0224168,153.98,153.91,4.72928831]
[1752073337198,12.0224168,153.98,153.93,4.72928831]
[1752073337396,6.4942,153.97,153.94,6.4952]
[1752073337597,6.4942,153.97,153.93,4.72928831]
[1752073337896,18.5166168,153.97,153.93,4.72928831]
[1752073338298,12.0224168,153.97,153.93,4.72928831]
[1752073339411,9.21168831,154.02,153.88,373.98]
[1752073339610,4.72928831,154.0,153.88,374.98]
[1752073339805,8.32684905,153.99,153.92,6.496]
[1752073340007,12.0224168,154.0,153.93,4.72928831]
[1752073340215,6.4946,153.96,153.93,4.72928831]
[1752073341011,6.4946,153.96,153.93,11.22488831]
[1752073341516,6.4946,153.96,153.93,4.72928831]
[1752073342217,6.4948,153.95,153.92,1.0]
[1752073342411,6.4948,153.95,153.93,4.72928831]
[1752073342911,6.4952,153.94,153.93,4.72928831]
[1752073343305,4.72928831,154.0,153.93,4.72928831]
[1752073343510,6.495,153.95,153.93,4.72928831]
[1752073345911,6.4952,153.94,153.93,4.72928831]
[1752073346110,17.18315804,154.0,153.92,1.0]
[1752073346316,4.72928831,153.98,153.91,4.72928831]
[1752073346516,6.4959,153.93,153.91,4.72928831]
[1752073346709,12.0224168,153.98,153.91,4.72928831]
[1752073346912,12.0224168,153.98,153.94,4.72928831]
[1752073347118,6.4942,153.97,153.96,4.72928831]
[1752073347417,12.0224168,154.02,153.96,4.72928831]
[1752073347609,8.34922131,154.01,153.96,4.72928831]
[1752073347811,8.34922131,154.0,153.96,4.72928831]
[1752073348016,12.0224168,154.02,153.94,1.0]
[1752073348212,6.494,153.97,153.96,4.72928831]
[1752073348413,12.0224168,154.02,153.96,4.72928831]
[1752073348612,8.34755702,154.01,154.0,4.72928831]
[1752073348813,30.29260828,154.06,153.99,4.72928831]
[1752073349019,16.49075838,154.05,153.99,4.72928831]
[1752073349220,16.49075838,154.04,153.96,196.48]
[1752073349417,12.0224168,154.06,154.03,4.72928831]
[1752073349617,16.48746365,154.05,154.03,4.72928831]
[1752073349918,12.0224168,154.06,154.03,4.72928831]
[1752073350118,8.34731688,154.05,154.03,4.72928831]
[1752073350319,12.0224168,154.06,154.03,4.72928831]
[1752073350619,8.34349877,154.05,153.96,197.48]
[1752073350922,12.0224168,154.06,154.03,4.72928831]
[1752073351116,8.34218012,154.05,154.03,4.72928831]
[1752073351317,9.02630317,154.1,154.03,4.72928831]
[1752073351517,6.4905,154.06,154.05,4.72928831]
[1752073351816,12.0224168,154.1,154.0,4.72928831]
[1752073352016,16.47318502,154.09,154.04,4.72928831]
[1752073352216,16.75170511,154.1,154.04,4.72928831]
[1752073352217,6.4906,154.05,154.04,4.72928831]
[1752073352920,9.02630317,154.11,154.04,4.72928831]
[1752073353121,16.53668256,154.1,154.06,4.72928831]
[1752073353422,14.89600654,154.09,154.08,4.72928831]
[1752073353620,6.4892,154.09,154.08,4.72928831]
[1752073353815,12.0224168,154.09,154.06,4.72928831]
[1752073354726,6.4906,154.05,154.04,4.72928831]
[1752073355320,6.4906,154.05,154.02,6.4916]
[1752073355521,6.4903,154.06,154.04,4.72928831]
[1752073355723,12.0224168,154.11,154.04,4.72928831]
[1752073356022,8.28292411,154.1,154.06,4.72928831]
[1752073356217,6.49,154.07,154.06,4.72928831]
[1752073357024,4.21097982,154.12,154.06,4.72928831]
[1752073357217,8.28062335,154.11,154.06,4.72928831]
[1752073357521,12.0224168,154.12,154.06,4.72928831]
[1752073357722,8.27826767,154.11,154.06,4.72928831]
[1752073357921,12.0224168,154.12,154.1,4.72928831]
[1752073358124,6.4881,154.11,154.1,4.72928831]
[1752073358519,18.5105168,154.11,154.1,4.72928831]
[1752073359119,6.4881,154.11,154.1,4.72928831]
[1752073360026,4.4589,154.15,154.01,3.1348]
[1752073360223,8.29096881,154.14,154.08,4.72928831]
[1752073360425,8.29096881,154.13,154.08,4.72928831]
[1752073360626,6.4889,154.1,154.08,4.72928831]
[1752073361827,6.4882,154.11,154.08,4.72928831]
[1752073362027,6.4882,154.11,154.1,4.72928831]
[1752073362228,4.4589,154.15,154.01,2.1348]
[1752073362430,8.28970133,154.14,154.1,4.72928831]
[1752073362629,16.4813168,154.15,154.1,4.72928831]
[1752073362832,8.28970133,154.14,154.1,4.72928831]
[1752073363033,16.4813168,154.15,154.1,4.72928831]
[1752073363233,12.0224168,154.15,154.09,6.4886]
[1752073363439,12.0224168,154.15,154.12,4.72928831]
[1752073363637,8.32364509,154.14,154.08,4.72928831]
[1752073363834,12.0224168,154.15,154.13,4.72928831]
[1752073364138,18.5089168,154.15,154.13,4.72928831]
[1752073364435,12.0224168,154.15,154.13,4.72928831]
[1752073364637,12.0224168,154.15,154.09,2.1763]
[1752073364834,12.0224168,154.15,154.11,4.72928831]
[1752073366340,12.0224168,154.15,154.1,4.72928831]
[1752073366733,6.4881,154.11,154.1,4.72928831]
[1752073367037,12.0224168,154.15,154.1,4.72928831]
[1752073367932,6.4879,154.12,154.1,4.72928831]
[1752073369032,6.4874,154.13,154.1,11.21768831]
[1752073369239,6.4874,154.13,154.12,4.72928831]
[1752073369441,18.30109148,154.19,154.12,4.72928831]
[1752073369647,8.35949266,154.18,154.14,4.72928831]
[1752073369946,8.35949266,154.17,154.14,4.72928831]
[1752073370240,8.35949266,154.16,154.14,4.72928831]
[1752073370442,25.59421997,154.19,154.14,4.72928831]
[1752073370640,8.35793073,154.18,154.14,4.72928831]
[1752073370942,12.0224168,154.18,154.14,4.72928831]
[1752073371246,6.4858,154.17,154.14,4.72928831]
[1752073371541,12.0224168,154.18,154.14,4.72928831]
[1752073372039,9.02630317,154.22,154.17,4.72928831]
[1752073372344,8.35799046,154.21,154.18,4.72928831]
[1752073372544,8.35407918,154.2,154.1,3.2147]
[1752073372741,12.0224168,154.21,154.18,4.72928831]
[1752073372943,8.35407888,154.2,154.18,4.72928831]
[1752073373142,6.4844,154.2,154.1,3.2147]
[1752073373343,18.5068168,154.2,154.17,4.72928831]
[1752073373543,12.0224168,154.2,154.17,4.72928831]
[1752073373743,12.0224168,154.2,154.18,6.485]
[1752073374435,13.55550317,154.25,154.19,4.72928831]
[1752073374634,8.35024187,154.24,154.21,4.72928831]
[1752073374843,8.35024187,154.23,154.21,4.72928831]
[1752073375034,8.35024187,154.22,154.21,4.72928831]
[1752073375238,8.35024187,154.22,154.18,4.72928831]
[1752073375442,12.0224168,154.22,154.11,196.92]
[1752073375636,12.0224168,154.22,154.16,4.72928831]
[1752073376046,12.0224168,154.22,154.18,4.72928831]
[1752073376244,12.0224168,154.22,154.2,4.72928831]
[1752073376444,4.5292,154.25,154.2,4.72928831]
[1752073376744,8.34570825,154.24,154.2,11.21328831]
[1752073376945,8.34570825,154.23,154.2,11.21328831]
[1752073377147,12.0224168,154.24,154.21,4.72928831]
[1752073377545,12.0224168,154.24,154.1,2.2147]
[1752073377751,12.0224168,154.24,154.21,4.72928831]
[1752073378050,8.34354185,154.23,154.21,4.72928831]
[1752073378249,6.4832,154.23,154.21,4.72928831]
[1752073378548,18.5056168,154.23,154.21,4.72928831]
[1752073379542,6.4834,154.22,154.21,4.72928831]
[1752073379741,12.0224168,154.23,154.21,4.72928831]
[1752073380540,16.75170511,154.23,154.1,2.2147]
[1752073380750,16.75170511,154.23,154.16,4.72928831]
[1752073381247,16.75170511,154.23,154.1,2.2147]
[1752073381551,4.72928831,154.21,154.09,2.1466]
[1752073381747,6.4857,154.17,154.13,11.21608831]
[1752073381946,12.0224168,154.23,154.13,4.72928831]
[1752073382152,12.0224168,154.23,154.17,4.72928831]
[1752073382450,16.75170511,154.23,154.17,4.72928831]
[1752073382652,16.75170511,154.23,154.09,2.1466]
[1752073382852,12.0224168,154.23,154.14,11.21598831]
[1752073383050,4.72928831,154.2,154.14,4.72928831]
[1752073383449,6.4853,154.18,154.14,6.4864]
[1752073383653,16.75170511,154.2,154.13,1.0]
[1752073383950,6.4853,154.18,154.13,5.72928831]
[1752073384146,16.75170511,154.2,154.13,5.72928831]
[1752073384147,12.0224168,154.2,154.13,5.72928831]
[1752073384554,6.4849,154.19,154.15,6.486]
[1752073384752,6.4849,154.19,154.13,5.72928831]
[1752073384949,4.5292,154.25,154.15,4.72928831]
[1752073385251,4.72928831,154.23,154.15,4.72928831]
[1752073385753,8.37329465,154.22,154.15,4.72928831]
[1752073386052,8.37329465,154.21,154.15,4.72928831]
[1752073386350,12.0224168,154.23,154.17,4.72928831]
[1752073386549,12.0224168,154.23,154.15,1.0]
[1752073386550,8.37331611,154.22,154.15,1.0]
[1752073386741,8.37331611,154.21,154.17,4.72928831]
[1752073386946,6.4839,154.21,154.18,6.4849]
[1752073387251,18.5063168,154.21,154.18,6.4849]
[1752073387650,8.37717195,154.2,154.15,5.72928831]
[1752073387946,4.72928831,154.19,154.15,1.0]
[1752073388152,6.4859,154.17,154.15,1.0]
[1752073388354,18.88680511,154.19,154.12,4.72928831]
[1752073388749,12.0224168,154.19,154.14,4.72928831]
[1752073388955,4.72928831,154.24,154.14,1.0]
[1752073389154,6.4837,154.22,154.17,4.72928831]
[1752073389453,8.38248877,154.21,154.17,4.72928831]
[1752073389654,8.38248877,154.2,154.17,4.72928831]
[1752073389855,12.0224168,154.2,154.17,4.72928831]
[1752073390154,6.4832,154.23,154.17,4.72928831]
[1752073390348,8.39211213,154.22,154.17,4.72928831]
[1752073390548,8.39211213,154.21,154.17,4.72928831]
[1752073390856,8.39453513,154.2,154.19,4.72928831]
[1752073391051,12.0224168,154.23,154.19,4.72928831]
[1752073391355,8.39475282,154.22,154.19,4.72928831]
[1752073391555,8.39475282,154.21,154.19,4.72928831]
[1752073391855,12.0224168,154.23,154.19,4.72928831]
[1752073392055,8.40537801,154.22,154.19,4.72928831]
[1752073392356,8.41162373,154.21,154.15,2.1494]
[1752073392654,12.0224168,154.23,154.2,6.4839]
[1752073392952,8.41002381,154.22,154.19,4.72928831]
[1752073393153,8.41002381,154.21,154.19,4.72928831]
[1752073393353,18.5057168,154.23,154.21,6.4836]
[1752073393556,8.41689477,154.22,154.21,6.4836]
[1752073394160,20.43931157,154.22,154.21,6.4836]
[1752073394463,29.4020787,154.22,154.2,4.72928831]
[1752073394752,8.41689477,154.21,154.2,4.72928831]
[1752073395356,6.4828,154.24,154.2,4.72928831]
[1752073395556,8.41755652,154.23,154.2,4.72928831]
[1752073395855,23.33158393,154.26,154.22,6.4831]
[1752073396158,8.41761533,154.25,154.22,6.4831]
[1752073396358,8.41761533,154.24,154.22,6.4831]
[1752073396562,8.41761533,154.23,154.22,6.4831]
[1752073396857,20.44003213,154.23,154.22,6.4831]
[1752073397060,8.41761533,154.23,154.22,11.21238831]
[1752073399853,8.41761533,154.23,154.21,11.21288831]
[1752073400050,2.3464,154.26,154.21,4.72928831]
[1752073400260,8.37047616,154.25,154.22,6.4832]
[1752073400458,8.37047616,154.24,154.21,4.72928831]
[1752073400660,8.37047616,154.23,154.21,4.72928831]
[1752073400855,14.3688168,154.26,154.21,11.21288831]
[1752073401056,8.37174838,154.25,154.21,11.21288831]
[1752073401259,8.37174838,154.24,154.21,6.4836]
[1752073401454,8.37174838,154.23,154.22,6.4834]
[1752073402256,2.1351,154.27,154.24,6.4823]
[1752073402453,8.37463212,154.26,154.23,4.72928831]
[1752073402653,8.37463212,154.25,154.23,4.72928831]
[1752073402855,12.0224168,154.27,154.25,6.4821]
[1752073403063,8.37572425,154.26,154.23,4.72928831]
[1752073403260,8.37572425,154.25,154.23,4.72928831]
[1752073403563,12.0224168,154.27,154.24,6.4824]
[1752073403763,8.37954052,154.26,154.24,6.4824]
[1752073403962,8.37954052,154.25,154.24,6.4824]
[1752073404964,6.4812,154.28,154.25,6.4821]
[1752073405264,8.38244159,154.27,154.25,6.4821]
[1752073405464,8.38244159,154.26,154.25,6.4821]
[1752073405867,6.4813,154.27,154.25,6.4821]
[1752073406066,18.5037168,154.27,154.25,6.4821]
[1752073406363,11.28926713,154.31,154.25,4.72928831]
[1752073406564,11.28926713,154.31,154.19,12.969]
[1752073406565,8.38223903,154.3,154.19,12.969]
[1752073406760,6.4811,154.28,154.25,4.72928831]
[1752073406957,14.3489168,154.31,154.26,6.4817]
[1752073407269,8.38166141,154.3,154.25,4.72928831]
[1752073407465,14.86236141,154.29,154.26,6.4815]
[1752073407666,8.38166141,154.28,154.25,4.72928831]
[1752073407866,6.4804,154.3,154.25,4.72928831]
[1752073408067,8.39692984,154.29,154.26,6.4813]
[1752073408268,14.3489168,154.31,154.26,6.4813]
[1752073408464,14.87750641,154.3,154.27,6.481]
[1752073408659,8.39730641,154.29,154.27,6.481]
[1752073408863,8.39730641,154.29,154.25,4.72928831]